bitfinex-derivatives/quotes_BTCF0:USTF0_20250313
["timestamp","ask_amount","ask_price","bid_price","bid_amount"]
[1741898837393,0.0322,80417.0,80416.0,0.2521606]
[1741898837800,0.156599,80417.0,80416.0,0.2521606]
[1741898838006,0.0322,80417.0,80416.0,0.2521606]
[1741898838603,0.156599,80417.0,80416.0,0.2521606]
[1741898839002,0.156599,80417.0,80416.0,0.1244006]
[1741898839201,0.0322,80417.0,80416.0,0.1244006]
[1741898839503,0.156599,80417.0,80416.0,0.1244006]
[1741898840596,0.0322,80417.0,80416.0,0.1244006]
[1741898841308,0.0322,80417.0,80408.0,0.00018664]
[1741898841507,0.1866162,80411.0,80410.0,0.1866091]
[1741898841801,0.1866162,80411.0,80410.0,0.0622041]
[1741898842394,0.0622048,80411.0,80410.0,0.0622041]
[1741898842593,0.0333,80413.0,80412.0,0.1244068]
[1741898843306,0.0333,80413.0,80412.0,0.1546068]
[1741898844296,0.0333,80413.0,80412.0,0.1244068]
[1741898844503,0.1577052,80413.0,80412.0,0.1244068]
[1741898844799,0.1244114,80409.0,80408.0,0.00018664]
[1741898845697,0.1244098,80411.0,80399.0,0.00186558]
[1741898845698,0.0622049,80411.0,80399.0,0.00186558]
[1741898845909,0.1244253,80400.0,80399.0,0.00186558]
[1741898846099,0.1234253,80400.0,80399.0,0.12629248]
[1741898847010,0.1234253,80400.0,80399.0,0.00186558]
[1741898847208,0.15,80400.0,80391.0,0.00018664]
[1741898847414,0.1244377,80392.0,80391.0,0.00018664]
[1741898847814,0.1214377,80392.0,80391.0,0.00018664]
[1741898848106,0.13426468,80392.0,80391.0,0.00018664]
[1741898848701,0.13426468,80392.0,80391.0,0.00618664]
[1741898849115,0.13426468,80392.0,80391.0,0.13062594]
[1741898849611,0.13426468,80392.0,80391.0,0.00618664]
[1741898851008,0.13826468,80392.0,80391.0,0.00018664]
[1741898851205,0.1244563,80380.0,80379.0,0.22061441]
[1741898851406,0.1244625,80376.0,80375.0,0.11972255]
[1741898851607,0.1244718,80370.0,80369.0,0.3700964]
[1741898851807,0.2531918,80370.0,80369.0,0.3700964]
[1741898852308,0.13631159,80370.0,80369.0,0.3700964]
[1741898852504,0.26495159,80370.0,80369.0,0.4945697]
[1741898852817,0.26495159,80370.0,80369.0,0.3710964]
[1741898854309,0.26495159,80370.0,80363.0,0.00068]
[1741898854310,0.1244811,80364.0,80363.0,0.00068]
[1741898855015,0.14893891,80364.0,80363.0,0.00068]
[1741898855218,0.1244842,80362.0,80361.0,0.12467184]
[1741898855817,0.1549842,80362.0,80361.0,0.12467184]
[1741898856020,0.16682399,80362.0,80361.0,0.12467184]
[1741898856419,0.01183979,80362.0,80361.0,0.12467184]
[1741898856610,0.16682399,80362.0,80361.0,0.12467184]
[1741898857009,0.1549842,80362.0,80361.0,0.15487184]
[1741898857518,0.0315,80362.0,80361.0,0.15487184]
[1741898857906,0.04324211,80362.0,80361.0,0.15487184]
[1741898858521,0.0315,80362.0,80361.0,0.15487184]
[1741898858921,0.001,80362.0,80361.0,0.15487184]
[1741898859114,0.1583842,80362.0,80361.0,0.15487184]
[1741898859321,0.1583842,80362.0,80361.0,0.18557184]
[1741898860934,0.0339,80362.0,80361.0,0.18557184]
[1741898861324,0.1583842,80362.0,80361.0,0.18557184]
[1741898862330,0.0339,80362.0,80361.0,0.18557184]
[1741898862718,0.0329,80362.0,80361.0,0.18657184]
[1741898863834,0.1573842,80362.0,80361.0,0.18657184]
[1741898864431,0.16964346,80362.0,80361.0,0.00118664]
[1741898864932,0.16964346,80362.0,80361.0,0.12467234]
[1741898865332,0.16964346,80362.0,80361.0,0.15537234]
[1741898865829,0.17064346,80362.0,80361.0,0.15537234]
[1741898866023,0.17064346,80362.0,80361.0,0.12467234]
[1741898866332,0.17064346,80362.0,80361.0,0.00018664]
[1741898866533,0.17064346,80362.0,80361.0,0.12467234]
[1741898866935,0.17064346,80362.0,80361.0,0.00018664]
[1741898867332,0.18238933,80362.0,80361.0,0.00018664]
[1741898868226,0.18238933,80362.0,80349.0,0.1547014]
[1741898868227,0.1245028,80350.0,80349.0,0.1547014]
[1741898868421,0.1245028,80350.0,80349.0,0.2792038]
[1741898869129,0.0303,80350.0,80349.0,0.2792038]
[1741898869344,0.219546,80355.0,80354.0,0.1244966]
[1741898869931,0.249846,80355.0,80354.0,0.1876966]
[1741898870834,0.00018664,80358.0,80354.0,0.0632]
[1741898871033,0.00018664,80358.0,80357.0,0.1244919]
[1741898871738,0.12467704,80358.0,80357.0,0.1244919]
[1741898872329,0.00018664,80358.0,80357.0,0.1244919]
[1741898873529,0.12467704,80358.0,80357.0,0.1244919]
[1741898873937,0.12467704,80358.0,80357.0,0.1254919]
[1741898874629,0.12467704,80358.0,80357.0,0.1244919]
[1741898875729,0.00018664,80358.0,80357.0,0.1244919]
[1741898877529,0.12467704,80358.0,80357.0,0.1244919]
[1741898878132,0.12467704,80358.0,80357.0,0.1254919]
[1741898878335,0.00018664,80358.0,80357.0,0.1254919]
[1741898879841,0.00018664,80358.0,80357.0,0.1244919]
[1741898880840,0.00018664,80358.0,80357.0,0.1254919]
[1741898881644,0.12467704,80358.0,80357.0,0.1244919]
[1741898881944,0.1244935,80357.0,80356.0,0.1244926]
[1741898882137,0.1859935,80357.0,80356.0,0.1244926]
[1741898882737,0.1859935,80357.0,80356.0,0.1549926]
[1741898883829,0.1859935,80357.0,80356.0,0.1244926]
[1741898884034,0.1859935,80357.0,80356.0,0.1254926]
[1741898885030,0.2490294,80347.0,80346.0,0.0622541]
[1741898885345,0.1245127,80347.0,80346.0,0.186763]
[1741898886131,0.13709453,80347.0,80346.0,0.251663]
[1741898886335,0.1245055,80349.0,80348.0,0.1245043]
[1741898886736,0.23182844,80349.0,80348.0,0.1245043]
[1741898886937,0.20882844,80349.0,80348.0,0.1245043]
[1741898887441,0.1245105,80345.0,80341.0,0.0329]
[1741898887643,0.1245151,80342.0,80341.0,0.1574158]
[1741898887842,0.1867835,80339.0,80338.0,0.1245205]
[1741898888145,0.0622606,80339.0,80338.0,0.1245205]
[1741898888348,0.0933606,80339.0,80338.0,0.1245205]
[1741898888942,0.0933606,80339.0,80336.0,0.0622615]
[1741898888943,0.1245229,80337.0,80336.0,0.0622615]
[1741898890444,0.1235229,80337.0,80336.0,0.0622615]
[1741898890637,0.13629343,80337.0,80336.0,0.0622615]
[1741898891334,0.16739343,80337.0,80336.0,0.0622615]
[1741898891941,0.16739343,80337.0,80336.0,0.0632615]
[1741898892146,0.16739343,80337.0,80336.0,0.001]
[1741898892337,0.19749343,80337.0,80336.0,0.001]
[1741898892533,0.19749343,80337.0,80336.0,0.1255244]
[1741898893547,0.22839343,80337.0,80336.0,0.1255244]
[1741898894233,0.22839343,80337.0,80334.0,0.0622635]
[1741898894234,0.22839343,80337.0,80334.0,0.062263]
[1741898894439,0.1867951,80334.0,80333.0,0.1867887]
[1741898895145,0.07477053,80337.0,80336.0,0.1245244]
[1741898895442,0.062,80337.0,80336.0,0.1245244]
[1741898895641,0.1865229,80337.0,80336.0,0.1245244]
[1741898895840,0.062,80337.0,80336.0,0.1245244]
[1741898896041,0.18505625,80338.0,80337.0,0.1245229]
[1741898896543,0.18505625,80338.0,80337.0,0.3445229]
[1741898897339,0.18505625,80338.0,80337.0,0.3455229]
[1741898897738,0.05144595,80338.0,80337.0,0.3455229]
[1741898897935,0.22191972,80342.0,80341.0,0.1245167]
[1741898898250,0.22191972,80342.0,80341.0,0.5041567]
[1741898899745,0.19891972,80342.0,80341.0,0.5041567]
[1741898899943,0.16274762,80342.0,80341.0,0.62842537]
[1741898900339,0.17507246,80358.0,80357.0,0.1244919]
[1741898900946,0.29956286,80358.0,80357.0,0.1244919]
[1741898901445,0.0622466,80357.0,80353.0,0.12944]
[1741898901653,0.1244966,80354.0,80353.0,0.1867411]
[1741898901840,0.1244966,80354.0,80350.0,0.0622511]
[1741898902037,0.1245012,80352.0,80351.0,0.1244997]
[1741898902238,0.1245012,80352.0,80351.0,0.1444997]
[1741898902450,0.1896012,80352.0,80351.0,0.1444997]
[1741898903555,0.0651,80352.0,80351.0,0.1444997]
[1741898904443,0.1895997,80352.0,80351.0,0.1444997]
[1741898905043,0.1895997,80352.0,80351.0,0.1750997]
[1741898905744,0.0651,80352.0,80351.0,0.1750997]
[1741898906051,0.11124791,80355.0,80354.0,0.1244966]
[1741898906950,0.23574291,80355.0,80354.0,0.1244966]
[1741898907749,0.17394791,80355.0,80354.0,0.1244966]
[1741898908360,0.29844291,80355.0,80354.0,0.1244966]
[1741898908755,0.17394791,80355.0,80354.0,0.1244966]
[1741898909463,0.14304791,80355.0,80354.0,0.1244966]
[1741898909661,0.11124791,80355.0,80354.0,0.3344966]
[1741898910057,0.11124791,80359.0,80354.0,0.21]
[1741898910254,0.23573671,80359.0,80358.0,0.1244904]
[1741898911159,0.26643671,80359.0,80358.0,0.1244904]
[1741898911459,0.14194791,80359.0,80358.0,0.1244904]
[1741898912260,0.26643671,80359.0,80358.0,0.1244904]
[1741898912462,0.11124791,80359.0,80358.0,0.1244904]
[1741898913357,0.11224791,80359.0,80358.0,0.1244904]
[1741898914062,0.11124791,80359.0,80358.0,0.1244904]
[1741898914263,0.0622459,80358.0,80355.0,0.0649]
[1741898914455,0.1245012,80352.0,80350.0,0.01224366]
[1741898914663,0.1561012,80351.0,80350.0,0.01224366]
[1741898914861,0.16861397,80351.0,80350.0,0.01224366]
[1741898915058,0.16861397,80351.0,80341.0,0.4710577]
[1741898915059,0.1245167,80341.0,80340.0,0.12638511]
[1741898915360,0.1245167,80341.0,80340.0,0.00186691]
[1741898916157,0.1245167,80341.0,80340.0,0.12638511]
[1741898916461,0.1245167,80341.0,80340.0,0.00186691]
[1741898917663,0.1245167,80341.0,80333.0,0.29763947]
[1741898917664,0.0621,80343.0,80333.0,0.29763947]
[1741898917965,0.1245275,80334.0,80333.0,0.29763947]
[1741898918165,0.2542875,80334.0,80333.0,0.29763947]
[1741898918362,0.12976,80334.0,80317.0,0.44405913]
[1741898918563,0.12454,80326.0,80325.0,0.4946379]
[1741898918867,0.0304,80333.0,80317.0,0.44405913]
[1741898918868,0.1868277,80321.0,80320.0,0.1245484]
[1741898919466,0.1245694,80307.0,80300.0,0.1]
[1741898919668,0.12471202,80307.0,80300.0,0.1]
[1741898919860,0.1245787,80301.0,80300.0,0.1]
[1741898920061,0.1245787,80301.0,80300.0,0.2245803]
[1741898920258,0.1245787,80301.0,80300.0,0.1]
[1741898920459,0.1246668,80301.0,80300.0,0.2245803]
[1741898920657,8.81e-05,80301.0,80300.0,0.2245803]
[1741898921068,8.81e-05,80301.0,80300.0,0.2869803]
[1741898921566,8.81e-05,80301.0,80300.0,0.2909803]
[1741898921991,0.00018675,80309.0,80300.0,0.29093222]
[1741898922164,0.0622843,80308.0,80307.0,0.1245679]
[1741898922361,0.0331,80308.0,80307.0,0.1245679]
[1741898922561,0.0141,80308.0,80307.0,0.1245679]
[1741898922958,9.256e-05,80308.0,80307.0,0.1245679]
[1741898923171,9.256e-05,80308.0,80307.0,0.1851679]
[1741898924169,9.256e-05,80308.0,80307.0,0.2051679]
[1741898924370,1e-08,80309.0,80308.0,0.1245679]
[1741898924568,1e-08,80309.0,80308.0,0.4651679]
[1741898924869,0.22180357,80323.0,80322.0,0.1245462]
[1741898925665,0.22180357,80323.0,80322.0,0.1555462]
[1741898925867,0.22180357,80323.0,80322.0,0.1867462]
[1741898926065,0.25230357,80323.0,80322.0,0.1867462]
[1741898926466,0.37684817,80323.0,80322.0,0.1555462]
[1741898927361,0.37684817,80323.0,80322.0,0.1245462]
[1741898928167,0.37884817,80323.0,80322.0,0.1245462]
[1741898928382,0.1570446,80323.0,80322.0,0.1245462]
[1741898929672,0.1550446,80323.0,80322.0,0.1245462]
[1741898929873,0.1570446,80323.0,80322.0,0.1245462]
[1741898930567,0.0325,80323.0,80322.0,0.1245462]
[1741898930966,0.002,80323.0,80322.0,0.1245462]
[1741898931270,0.1108019,80332.0,80330.0,0.1245337]
[1741898931471,0.0662,80339.0,80330.0,0.1245337]
[1741898933177,0.18466983,80341.0,80330.0,0.3156537]
[1741898933372,0.18466983,80341.0,80340.0,0.1245182]
[1741898934374,0.18466983,80341.0,80340.0,0.1899182]
[1741898935072,0.11077502,80344.0,80343.0,0.1245136]
[1741898935473,0.23528702,80344.0,80343.0,0.1245136]
[1741898936271,0.29808702,80344.0,80343.0,0.1245136]
[1741898936676,0.29908702,80344.0,80343.0,0.1245136]
[1741898938572,0.29908702,80344.0,80341.0,0.0622576]
[1741898938573,0.1245167,80342.0,80341.0,0.1245154]
[1741898939086,0.1888167,80342.0,80341.0,0.1245154]
[1741898939268,0.1888167,80342.0,80341.0,0.1559154]
[1741898939473,0.1888167,80342.0,80341.0,0.1245154]
[1741898939675,0.1898167,80342.0,80341.0,0.1245154]
[1741898940575,0.1888167,80342.0,80341.0,0.1245154]
[1741898940774,0.1898167,80342.0,80341.0,0.1556154]
[1741898941484,0.1898167,80342.0,80341.0,0.1245154]
[1741898942083,0.0622675,80330.0,80315.0,0.00072]
[1741898942384,0.1245431,80324.0,80323.0,0.25094454]
[1741898943277,0.0311,80324.0,80323.0,0.25094454]
[1741898943684,0.13172,80330.0,80329.0,0.1245353]
[1741898943885,0.1255337,80330.0,80329.0,0.1245353]
[1741898944291,0.1902337,80330.0,80329.0,0.1245353]
[1741898944500,0.0657,80330.0,80329.0,0.1245353]
[1741898944692,0.001,80330.0,80329.0,0.1245353]
[1741898945389,0.001,80330.0,80329.0,0.3645353]
[1741898945778,0.00018675,80332.0,80329.0,0.36448726]
[1741898945987,0.11077502,80344.0,80343.0,0.1245136]
[1741898946684,0.11077502,80344.0,80343.0,0.3745136]
[1741898946880,0.18466983,80346.0,80345.0,0.1245105]
[1741898947081,0.18466983,80346.0,80345.0,0.2756305]
[1741898947286,0.18466983,80346.0,80345.0,0.2556305]
[1741898948290,0.18566983,80346.0,80345.0,0.2556305]
[1741898948793,0.31017873,80346.0,80345.0,0.2556305]
[1741898949387,0.18566983,80346.0,80345.0,0.2556305]
[1741898951190,0.1255515,80350.0,80347.0,0.1245074]
[1741898951191,0.11104022,80348.0,80347.0,0.1245074]
[1741898952289,0.11104022,80348.0,80347.0,0.1558074]
[1741898953492,0.0934444,80359.0,80350.0,0.1245028]
[1741898953493,0.0636,80351.0,80350.0,0.1245028]
[1741898953695,0.0636,80351.0,80347.0,0.001]
[1741898953893,0.0636,80351.0,80332.0,0.1245306]
[1741898953894,0.1245244,80336.0,80332.0,0.1245306]
[1741898954094,0.1245244,80336.0,80333.0,0.0622644]
[1741898954291,0.1245244,80336.0,80333.0,0.1245277]
[1741898954490,0.1225244,80336.0,80335.0,0.12471275]
[1741898954683,0.1225244,80336.0,80335.0,0.00018675]
[1741898955087,0.1225244,80336.0,80335.0,0.12471275]
[1741898955489,0.1225244,80336.0,80335.0,0.00018675]
[1741898955992,0.1245244,80336.0,80335.0,0.00018675]
[1741898956187,0.1245244,80336.0,80335.0,0.12471275]
[1741898956188,0.13719802,80336.0,80335.0,0.12471275]
[1741898956591,0.13719802,80336.0,80335.0,0.00018675]
[1741898956797,0.13819802,80336.0,80335.0,0.00018675]
[1741898957492,0.1255244,80336.0,80335.0,0.12471275]
[1741898957888,0.1867988,80334.0,80333.0,0.0622638]
[1741898958600,0.3114646,80334.0,80333.0,0.0622638]
[1741898958995,0.0644,80334.0,80333.0,0.0946638]
[1741898959190,0.1889275,80334.0,80333.0,0.1258638]
[1741898960192,0.0644,80334.0,80333.0,0.1258638]
[1741898960496,0.1899275,80334.0,80333.0,0.1258638]
[1741898961095,0.1899275,80334.0,80328.0,0.00186715]
[1741898961096,0.0654,80334.0,80328.0,0.00186715]
[1741898961400,0.1245353,80329.0,80328.0,0.25093115]
[1741898961898,0.1245353,80329.0,80328.0,0.12640095]
[1741898962492,0.1549353,80329.0,80328.0,0.12640095]
[1741898963594,0.1569353,80329.0,80328.0,0.15850095]
[1741898963901,0.0324,80329.0,80328.0,0.15850095]
[1741898964094,0.1569353,80329.0,80328.0,0.15850095]
[1741898964501,0.22416303,80329.0,80328.0,0.15850095]
[1741898965005,0.25356303,80329.0,80328.0,0.15850095]
[1741898965201,0.25456303,80329.0,80328.0,0.15850095]
[1741898965497,0.25456303,80329.0,80328.0,0.1867973]
[1741898967798,0.1245368,80328.0,80327.0,0.0307]
[1741898968104,0.1245368,80328.0,80325.0,0.00018675]
[1741898968105,0.12454,80326.0,80325.0,0.00018675]
[1741898968603,0.12454,80326.0,80325.0,0.12472825]
[1741898968806,0.18534,80326.0,80325.0,0.12472825]
[1741898969499,0.19721908,80326.0,80325.0,0.12472825]
[1741898970006,0.19821908,80326.0,80325.0,0.12472825]
[1741898970594,0.21044354,80326.0,80325.0,0.00018675]
[1741898970989,0.21044354,80326.0,80325.0,0.12472825]
[1741898972006,0.20944354,80326.0,80325.0,0.12472825]
[1741898972206,0.21244354,80326.0,80325.0,0.12472825]
[1741898972409,0.27967127,80326.0,80325.0,0.12472825]
[1741898972908,0.28067127,80326.0,80325.0,0.12472825]
[1741898979404,0.26844681,80326.0,80325.0,0.12472825]
[1741898979804,0.26844681,80326.0,80325.0,0.15482825]
[1741898981213,0.08310681,80326.0,80325.0,0.15482825]
[1741898981899,0.08310681,80326.0,80325.0,0.19949574]
[1741898982105,0.08310681,80326.0,80325.0,0.25949574]
[1741898982310,0.07122773,80326.0,80325.0,0.25949574]
[1741898984516,0.07122773,80326.0,80325.0,0.39169574]
[1741898984710,0.06722773,80326.0,80325.0,0.39169574]
[1741898985012,0.07022773,80326.0,80325.0,0.25949574]
[1741898985216,0.19476773,80326.0,80325.0,0.03218675]
[1741898985409,0.19476773,80326.0,80325.0,0.15672825]
[1741898985809,0.25706773,80326.0,80325.0,0.15672825]
[1741898986015,0.25706773,80326.0,80325.0,0.18762825]
[1741898986515,0.25706773,80326.0,80325.0,0.03218675]
[1741898986815,0.186837,80317.0,80316.0,0.1245489]
[1741898988322,0.1245555,80316.0,80315.0,0.032]
[1741898988521,0.20121536,80316.0,80315.0,0.156557]
[1741898989524,0.1884555,80316.0,80315.0,0.156557]
[1741898990818,0.25568323,80316.0,80315.0,0.156557]
[1741898991221,0.25768323,80316.0,80315.0,0.156557]
[1741898994427,0.10212773,80316.0,80315.0,0.156557]
[1741898995125,0.22668323,80316.0,80315.0,0.156557]
[1741898995819,0.10012773,80316.0,80315.0,0.156557]
[1741898996019,0.10112773,80316.0,80315.0,0.156557]
[1741898997037,0.22568323,80316.0,80315.0,0.156557]
[1741898997530,0.10112773,80316.0,80315.0,0.156557]
[1741898997824,0.22668323,80316.0,80315.0,0.166557]
[1741898998623,0.22568323,80316.0,80315.0,0.166557]
[1741898998824,0.22568323,80316.0,80313.0,0.06154232]
[1741898999028,0.1555575,80315.0,80314.0,0.1245586]
[1741898999626,0.1885575,80315.0,80314.0,0.3645586]
[1741898999837,0.0622808,80313.0,80308.0,0.12643418]
[1741899000019,0.1245663,80309.0,80308.0,0.27099788]
[1741899000822,0.1245663,80309.0,80304.0,1.08548]
[1741899000823,0.1245663,80309.0,80304.0,0.00064]
[1741899001023,0.1245787,80301.0,80300.0,0.1]
[1741899001226,0.1245787,80301.0,80300.0,0.2245803]
[1741899001728,0.0659,80302.0,80301.0,0.1245787]
[1741899001927,0.20324485,80302.0,80301.0,0.1245787]
[1741899003631,0.20324485,80302.0,80300.0,0.12481592]
[1741899003928,0.20324485,80302.0,80301.0,0.1245787]
[1741899004634,0.0659,80302.0,80301.0,0.1245787]
[1741899004935,0.0659,80302.0,80301.0,0.1572787]
[1741899005127,0.0659,80302.0,80301.0,0.2082787]
[1741899005734,0.12858383,80302.0,80301.0,0.22081755]
[1741899006540,0.09568383,80302.0,80301.0,0.22081755]
[1741899006929,0.12658383,80302.0,80301.0,0.13711755]
[1741899007134,0.12658383,80302.0,80301.0,0.16731755]
[1741899007531,0.02435743,80302.0,80301.0,0.38731755]
[1741899007735,0.031,80311.0,80307.0,0.0622843]
[1741899007931,0.031,80311.0,80310.0,0.1245648]
[1741899008130,0.032,80324.0,80317.0,0.1245539]
[1741899008333,0.032,80324.0,80317.0,0.2582339]
[1741899009042,0.032,80324.0,80317.0,0.2545539]
[1741899009235,0.032,80324.0,80317.0,0.40070661]
[1741899009438,0.033,80323.0,80317.0,0.40070661]
[1741899009634,0.033,80323.0,80317.0,0.40066661]
[1741899009829,0.033,80323.0,80317.0,0.29738661]
[1741899010039,6e-08,80319.0,80317.0,0.55529247]
[1741899010229,6e-08,80319.0,80318.0,0.1245524]
[1741899010431,6e-08,80319.0,80318.0,0.4248524]
[1741899010631,6e-08,80319.0,80318.0,0.4554524]
[1741899010839,6e-08,80319.0,80318.0,0.5896924]
[1741899011839,6e-08,80319.0,80318.0,0.4554524]
[1741899012142,6e-08,80319.0,80318.0,0.5907324]
[1741899012343,6e-08,80319.0,80318.0,0.5906924]
[1741899012738,6e-08,80319.0,80318.0,0.4564524]
[1741899012943,0.03250006,80319.0,80318.0,0.4564524]
[1741899013242,0.03250006,80319.0,80318.0,0.5905324]
[1741899013434,0.06430006,80319.0,80318.0,0.5895324]
[1741899014034,0.06430006,80319.0,80318.0,0.5894124]
[1741899014240,0.18885086,80319.0,80318.0,0.4351524]
[1741899014433,0.06430006,80319.0,80318.0,0.4361524]
[1741899015541,0.06430006,80319.0,80318.0,0.5707524]
[1741899015741,0.06430006,80319.0,80318.0,0.5707124]
[1741899016841,0.06430006,80319.0,80318.0,0.4361524]
[1741899017139,0.06430006,80319.0,80318.0,0.5705124]
[1741899017445,0.06430006,80319.0,80318.0,0.5704724]
[1741899017643,0.06430006,80319.0,80318.0,0.5694724]
[1741899018839,0.06430006,80319.0,80318.0,0.4351524]
[1741899019037,0.06430006,80319.0,80318.0,0.5692724]
[1741899019240,0.06430006,80319.0,80318.0,0.5692324]
[1741899019639,0.03250006,80319.0,80318.0,0.4351524]
[1741899019837,0.03250006,80319.0,80318.0,0.5895124]
[1741899020546,0.03250006,80319.0,80318.0,0.5691124]
[1741899020747,0.03250006,80319.0,80318.0,0.5689924]
[1741899020937,0.03250006,80319.0,80318.0,0.4351524]
[1741899021137,0.03250006,80319.0,80318.0,0.5689524]
[1741899021338,0.03250006,80319.0,80318.0,0.5689124]
[1741899021542,0.03250006,80319.0,80318.0,0.4351524]
[1741899021742,0.03250006,80319.0,80318.0,0.5688724]
[1741899022246,0.03250006,80319.0,80318.0,0.5687524]
[1741899022437,0.03250006,80319.0,80318.0,0.5891524]
[1741899023251,0.03250006,80319.0,80318.0,0.5686324]
[1741899023442,0.03250006,80319.0,80318.0,0.4351524]
[1741899023640,0.03250006,80319.0,80318.0,0.5685524]
[1741899023842,0.03250006,80319.0,80318.0,0.4351524]
[1741899024155,0.03250006,80319.0,80318.0,0.5685124]
[1741899024452,0.03250006,80319.0,80318.0,0.4351524]
[1741899024749,0.03250006,80319.0,80318.0,0.5888324]
[1741899025749,0.0318,80323.0,80322.0,0.1245462]
[1741899025955,0.0622573,80343.0,80334.0,0.1245275]
[1741899026246,0.0622608,80338.0,80334.0,0.1245275]
[1741899026447,0.124523,80337.0,80334.0,0.1245275]
[1741899026842,0.155926,80335.0,80334.0,0.1245275]
[1741899027444,0.159926,80335.0,80334.0,0.1245275]
[1741899028139,0.1245384,80327.0,80319.0,0.062275]
[1741899028441,0.1245384,80327.0,80289.0,0.22376466]
[1741899028442,0.1245384,80327.0,80326.0,0.12472675]
[1741899029453,0.0601,80327.0,80326.0,0.12472675]
[1741899030450,0.0621,80327.0,80326.0,0.12472675]
[1741899031060,0.0621,80327.0,80326.0,0.13715512]
[1741899033362,0.0621,80327.0,80326.0,0.36715512]
[1741899033562,0.0621,80327.0,80326.0,0.42995512]
[1741899033951,0.0621,80327.0,80326.0,0.39895512]
[1741899034567,0.1866384,80327.0,80326.0,0.38652675]
[1741899035277,0.0621,80327.0,80326.0,0.38652675]
[1741899037169,0.0681,80327.0,80326.0,0.38652675]
[1741899038676,0.1926384,80327.0,80326.0,0.35472675]
[1741899039265,0.1926384,80327.0,80326.0,0.38702675]
[1741899040568,0.1926384,80327.0,80326.0,0.35472675]
[1741899040765,0.25319525,80327.0,80326.0,0.35472675]
[1741899040970,0.26560488,80327.0,80326.0,0.35472675]
[1741899041371,0.12865685,80327.0,80326.0,0.35472675]
[1741899041578,0.25319525,80327.0,80326.0,0.38702675]
[1741899045382,0.25319525,80327.0,80326.0,0.23018675]
[1741899045583,0.25319525,80327.0,80326.0,0.35472675]
[1741899048085,0.25319525,80327.0,80326.0,0.12472675]
[1741899049873,0.25319525,80327.0,80326.0,0.39472675]
[1741899051286,0.09855685,80327.0,80326.0,0.39472675]
[1741899051485,0.09855685,80327.0,80326.0,0.45712675]
[1741899051679,0.09855685,80327.0,80326.0,0.30490184]
[1741899051882,0.09855685,80327.0,80326.0,0.42944184]
[1741899053189,0.09855685,80327.0,80326.0,0.39884184]
[1741899053485,0.22309525,80327.0,80326.0,0.36704184]
[1741899053880,0.09855685,80327.0,80326.0,0.36704184]
[1741899054077,0.25349525,80327.0,80326.0,0.39754184]
[1741899055279,0.1245493,80320.0,80319.0,0.1868251]
[1741899055482,0.1245493,80320.0,80319.0,0.2468251]
[1741899055682,0.0637,80321.0,80320.0,0.1245493]
[1741899055878,0.0637,80321.0,80320.0,0.1968493]
[1741899056486,0.0637,80321.0,80320.0,0.2289493]
[1741899056687,0.0637,80321.0,80320.0,0.24134937]
[1741899056890,0.0687,80321.0,80320.0,0.24134937]
[1741899057889,0.1932477,80321.0,80320.0,0.1968493]
[1741899058087,0.0687,80321.0,80320.0,0.1968493]
[1741899058391,0.0687,80321.0,80320.0,0.2296493]
[1741899058692,0.12925685,80321.0,80320.0,0.1896493]
[1741899058990,0.09625685,80321.0,80320.0,0.20185943]
[1741899060679,0.09625685,80321.0,80320.0,0.44185943]
[1741899061483,0.06555685,80321.0,80320.0,0.44185943]
[1741899061687,0.06555685,80321.0,80320.0,0.40905943]
[1741899062289,0.06555685,80321.0,80320.0,0.44195943]
[1741899063682,0.09635685,80321.0,80320.0,0.44195943]
[1741899064680,0.09635685,80321.0,80320.0,0.57547943]
[1741899065384,0.09635685,80321.0,80320.0,0.57543943]
[1741899065784,0.09635685,80321.0,80320.0,0.57539943]
[1741899065984,0.09635685,80321.0,80320.0,0.54249943]
[1741899066183,0.22090455,80321.0,80320.0,0.54241943]
[1741899066388,0.22090455,80321.0,80320.0,0.40905943]
[1741899067295,0.22090455,80321.0,80320.0,0.37675943]
[1741899067796,0.22090455,80321.0,80320.0,0.40755943]
[1741899070103,0.22090455,80321.0,80320.0,0.3953493]
[1741899070596,0.25310455,80321.0,80320.0,0.3953493]
[1741899072294,0.25310455,80321.0,80320.0,0.3645493]
[1741899072801,0.1868577,80309.0,80308.0,0.1868393]
[1741899072988,0.1868577,80309.0,80308.0,0.2187393]
[1741899073189,0.1868577,80309.0,80308.0,0.4887393]
[1741899074695,0.1888577,80309.0,80308.0,0.4887393]
[1741899075402,0.1888577,80309.0,80308.0,0.2217393]
[1741899075801,0.24941455,80309.0,80308.0,0.2217393]
[1741899076193,0.31171455,80309.0,80308.0,0.2217393]
[1741899076397,0.31171455,80309.0,80308.0,0.1898393]
[1741899076597,0.32450385,80309.0,80308.0,0.2098393]
[1741899077289,0.32450385,80309.0,80308.0,0.023]
[1741899077490,0.32450385,80309.0,80308.0,0.1475679]
[1741899079899,0.38678925,80309.0,80306.0,0.1245694]
[1741899080100,0.26221675,80309.0,80308.0,0.1245679]
[1741899080291,0.25721675,80309.0,80308.0,0.1245679]
[1741899081405,0.26121675,80309.0,80308.0,0.1245679]
[1741899081803,0.26521675,80309.0,80308.0,0.1245679]
[1741899082005,0.1245694,80307.0,80306.0,0.0622847]
[1741899082210,0.1868549,80307.0,80306.0,0.144569]
[1741899084108,0.1918549,80307.0,80306.0,0.144569]
[1741899084897,0.1958549,80307.0,80306.0,0.144569]
[1741899085701,0.1948549,80307.0,80306.0,0.144569]
[1741899086306,0.1918549,80307.0,80306.0,0.144569]
[1741899086506,0.009,80307.0,80306.0,0.176169]
[1741899086812,0.009,80307.0,80306.0,0.189869]
[1741899087000,0.06955685,80307.0,80306.0,0.221069]
[1741899087503,0.22532625,80307.0,80306.0,0.221069]
[1741899088507,0.22532625,80307.0,80306.0,0.157169]
[1741899088704,0.22132625,80307.0,80306.0,0.001]
[1741899088904,0.22332625,80307.0,80306.0,0.001]
[1741899089405,0.22332625,80307.0,80306.0,0.125571]
[1741899090711,0.22432625,80307.0,80306.0,0.124571]
[1741899091413,0.22532625,80307.0,80306.0,0.124571]
[1741899091904,0.09475685,80307.0,80306.0,0.124571]
[1741899092106,0.22532625,80307.0,80306.0,0.156871]
[1741899092408,0.22532625,80307.0,80306.0,0.124571]
[1741899094215,0.21932625,80307.0,80306.0,0.124571]
[1741899094511,0.22532625,80307.0,80306.0,0.124571]
[1741899094708,0.22232625,80307.0,80306.0,0.124571]
[1741899094902,0.22632625,80307.0,80306.0,0.124571]
[1741899095098,0.22032625,80307.0,80306.0,0.124571]
[1741899095311,0.22632625,80307.0,80306.0,0.124571]
[1741899095512,0.22232625,80307.0,80306.0,0.124571]
[1741899095712,0.22532625,80307.0,80306.0,0.124571]
[1741899095911,0.22532625,80307.0,80304.0,0.0329]
[1741899095912,0.10075685,80307.0,80304.0,0.0329]
[1741899096116,0.1245772,80302.0,80301.0,0.2491558]
[1741899096415,0.1245772,80302.0,80301.0,0.1445775]